[Event "Forni di Sopra Dolomiti 2018"]
[Site "Forni di Sopra"]
[Date "2018.06.09"]
[Round "1.11"]
[White "Djuric, Stefan"]
[Black "Barillaro, Luca"]
[Result "1-0"]
[ECO "C02"]
[WhiteElo "2350"]
[BlackElo "2081"]
[Annotator "NA"]
[PlyCount "85"]
[EventDate "2018.??.??"]
[EventType "swiss"]
[EventCountry "ITA"]
[SourceTitle "playchess.com"]
[Source "ChessBase"]
[SourceQuality "1"]
[TimeControl "40/5400+30:1800+30"]

1. e4 {[%emt 0:00:30]} e6 {[%emt 0:01:00]} 2. d4 {[%emt 0:00:00]} d5 {[%emt 0:00:00]} 3. e5 {[%emt 0:00:00]} c5 {[%emt 0:00:00]} 4. c3 {[%emt 0:00:00]} Nc6 {[%emt 0:00:30]} 5. Nf3 {[%emt 0:00:00]} Bd7 {[%emt 0:01:30]} 6. Be3 {[%emt 0:01:30]} Qb6 {[%emt 0:14:30]} 7. Qd2 {[%emt 0:01:30]} Rc8 {[%emt 0:03:30]} 8. Be2 {[%emt 0:04:30] C02: French: Advance Variation} (8. dxc5 Bxc5 9. Bxc5 Qxc5 10. Bd3 f6 11. Qe2 fxe5 12. Nxe5 Nxe5 13. Qxe5 Nf6 14. O-O O-O 15. h3 Rfe8 16. Nd2 Bb5 17. Nb3 Qb6 18. Bxb5 Qxb5 {½-½ (28) Stromboli,E (2311)-Luciani,V (2226) Porto San Giorgio 2017}) 8... cxd4 {[%emt 0:16:30]} 9. cxd4 {[%emt 0:00:30]} Na5 {[%emt 0:03:30]} 10. Nc3 {[%emt 0:00:30]} Nc4 {[%emt 0:02:30]} 11. Bxc4 {[%emt 0:00:30]} Rxc4 {[%emt 0:00:30]} 12. O-O {[%emt 0:00:30]} Bb4 {[%emt 0:03:30]} 13. Rfc1 {[%emt 0:05:30]} Ne7 {[%emt 0:03:30]} 14. a3 {[%emt 0:19:30]} Bxc3 {[%emt 0:00:00]} 15. bxc3 {[%emt 0:00:30]} O-O {[%emt 0:14:00]} 16. Bg5 $146 {[%emt 0:00:30]} f6 {[%emt 0:02:30]} 17. exf6 {[%emt 0:01:30]} gxf6 {[%emt 0:00:30]} 18. Bxf6 {[%emt 0:00:30]} Ng6 {[%emt 0:00:30]} 19. Ne5 {[%emt 0:02:30]} Nxe5 {[%emt 0:03:30]} 20. Bxe5 {[%emt 0:00:30]} Qd8 {[%emt 0:01:30]} 21. Re1 {[%emt 0:00:30]} Qe7 {[%emt 0:02:30]} 22. Re3 {[%emt 0:00:30]} Be8 {[%emt 0:00:30]} 23. Rg3+ {[%emt 0:01:30]} Bg6 {[%emt 0:00:30]} 24. Qh6 {[%emt 0:00:30]} Rf5 {[%emt 0:02:30]} 25. a4 {[%emt 0:11:30]} Kf7 {[%emt 0:09:33]} 26. a5 {[%emt 0:01:30]} Ke8 {[%emt 0:03:25]} 27. Qe3 {[%emt 0:07:30]} Rc6 {[%emt 0:01:59]} 28. Qe2 {[%emt 0:02:30]} Rf7 {[%emt 0:05:11]} 29. Re3 {[%emt 0:00:30]} Qd7 {[%emt 0:02:49]} 30. h4 {[%emt 0:01:30]} Rf8 {[%emt 0:01:33]} 31. h5 {[%emt 0:03:30]} Bf5 {[%emt 0:00:46]} (31... Bf7 {was necessary.} 32. Rf3 Rg8) 32. g4 {[%emt 0:02:30]} Rg8 {[%emt 0:00:09]} 33. Rg3 {[%emt 0:00:30]} Be4 {[%emt 0:00:27]} 34. f3 {[%emt 0:00:30]} Rxc3 {[%emt 0:00:22]} 35. fxe4 {[%emt 0:00:30]} Rxg3+ {[%emt 0:00:55]} 36. Bxg3 {[%emt 0:00:30]} Qg7 {[%emt 0:01:12]} 37. Be5 {[%emt 0:11:30]} Qxg4+ {[%emt 0:00:06]} 38. Qxg4 {[%emt 0:00:00]} Rxg4+ {[%emt 0:00:32]} 39. Kf2 {[%emt 0:00:00]} Rh4 {[%emt 0:00:25]} 40. Rc1 $18 {[%emt 0:00:00]} b6 {[%emt 0:01:36]} 41. Rc8+ {[%emt 0:01:00]} Kd7 {[%emt 0:00:30]} 42. Rc7+ {[%emt 0:00:30]} Kd8 {[%emt 0:00:30]} 43. Rxa7 1-0

[Event "Forni di Sopra Dolomiti 2018"]
[Site "Forni di Sopra"]
[Date "2018.06.09"]
[Round "1.12"]
[White "Battistella, Stefano"]
[Black "Qendro, Llambi"]
[Result "1/2-1/2"]
[ECO "B13"]
[WhiteElo "2054"]
[BlackElo "2334"]
[Annotator "NA"]
[PlyCount "21"]
[EventDate "2018.??.??"]
[EventType "swiss"]
[EventCountry "ITA"]
[SourceTitle "playchess.com"]
[Source "ChessBase"]
[SourceQuality "1"]
[TimeControl "40/5400+30:1800+30"]

1. d4 {[%emt 0:00:30]} c6 {[%emt 0:01:00]} 2. e4 {[%emt 0:04:30]} d5 {[%emt 0:04:30]} 3. exd5 {[%emt 0:04:30]} cxd5 {[%emt 0:00:30]} 4. Bd3 {[%emt 0:00:30]} Nc6 {[%emt 0:00:30]} 5. c3 {[%emt 0:00:00]} Nf6 {[%emt 0:00:30]} 6. Bf4 {[%emt 0:02:00]} Bg4 {[%emt 0:04:30]} 7. Qb3 {[%emt 0:09:30]} Na5 {[%emt 0:07:30]} 8. Qa4+ {[%emt 0:02:30]} Bd7 {[%emt 0:06:30]} 9. Qd1 {[%emt 0:00:00]} Bg4 {[%emt 0:00:30]} 10. Qa4+ {[%emt 0:01:00]} Bd7 {[%emt 0:00:30]} 11. Qd1 {[%emt 0:00:00]} 1/2-1/2

[Event "Forni di Sopra Dolomiti 2018"]
[Site "Forni di Sopra"]
[Date "2018.06.12"]
[Round "4.8"]
[White "Loiacono, Antonio"]
[Black "Djuric, Stefan"]
[Result "1/2-1/2"]
[ECO "B46"]
[WhiteElo "2197"]
[BlackElo "2350"]
[Annotator "NA"]
[PlyCount "40"]
[EventDate "2018.??.??"]
[EventType "swiss"]
[EventCountry "ITA"]
[SourceTitle "playchess.com"]
[Source "ChessBase"]
[SourceQuality "1"]
[TimeControl "40/5400+30:1800+30"]

{[%evp 21,40,29,32767,32767,37,17,31,54,67,28,29,32767,84,81,32767,32767,32767,108,118,104,136]} 1. e4 {[%emt 0:01:30]} e6 {[%emt 0:01:00]} 2. d4 {[%emt 0:00:30]} c5 {[%emt 0:00:00]} 3. Nf3 {[%emt 0:00:30]} cxd4 {[%emt 0:00:00]} 4. Nxd4 {[%emt 0:00:00]} Nc6 {[%emt 0:01:30]} 5. Nc3 {[%emt 0:01:00]} a6 {[%emt 0:00:30]} 6. g3 {[%emt 0:01:30]} d5 {[%emt 0:07:30] B46: Sicilian: Taimanov: 5 Nc3 a6} (6... d6 7. Bg2 Bd7 8. O-O Nf6 9. Re1 Be7 10. a4 O-O 11. Nxc6 Bxc6 12. a5 Rc8 13. Be3 Qc7 14. Bb6 Qb8 15. Nd5 Bd8 16. Bxd8 Rcxd8 17. Nxf6+ gxf6 18. Qd4 e5 19. Qb6 Bd7 20. Rad1 Bg4 21. Rd2 Rc8 22. Rxd6 Rxc2 23. Rxf6 {1-0 (50) Vidit,S (2718)-Andreikin,D (2712) chess.com INT 2018}) 7. exd5 {[%emt 0:04:30]} exd5 {[%emt 0:00:30]} 8. Bg2 {[%emt 0:00:00]} Nf6 {[%emt 0:00:00]} 9. O-O {[%emt 0:00:00]} Be7 {[%emt 0:00:00]} 10. Bf4 {[%emt 0:02:30]} O-O {[%emt 0:00:30]} 11. a3 $146 {[%emt 0:04:30]} ({Predecessor:} 11. Re1 Re8 12. Nb3 Be6 13. Ne2 Bf5 14. Ned4 Be4 15. f3 Bg6 16. c3 Qd7 17. Qd2 Rad8 {0-1 (44) Larrea,M (2191)-Muniz,R (2172) Montevideo 2001}) 11... Bg4 {[%emt 0:11:30]} 12. Qd3 {[%emt 0:02:30]} Qd7 {[%emt 0:20:30]} 13. Rfe1 {[%emt 0:08:30]} Rad8 {[%emt 0:02:30]} 14. Na4 {[%emt 0:05:30]} Bd6 {[%emt 0:12:30]} 15. Bxd6 {[%emt 0:02:30]} Qxd6 {[%emt 0:01:30]} 16. Nxc6 {[%emt 0:00:30]} bxc6 {[%emt 0:06:30]} 17. b4 {[%emt 0:00:30]} Nd7 {[%emt 0:01:30]} 18. Qd4 {[%emt 0:00:30]} Qg6 {[%emt 0:02:30]} 19. c4 {[%emt 0:02:30]} Nf6 {[%emt 0:01:30]} 20. cxd5 {[%emt 0:01:30]} cxd5 $16 {[%emt 0:01:30]} 1/2-1/2

[Event "Forni di Sopra Dolomiti 2018"]
[Site "Forni di Sopra"]
[Date "2018.06.12"]
[Round "4.10"]
[White "Barillaro, Luca"]
[Black "Loiacono, Leonardo"]
[Result "1/2-1/2"]
[ECO "E17"]
[WhiteElo "2081"]
[BlackElo "2313"]
[Annotator "NA"]
[PlyCount "54"]
[EventDate "2018.??.??"]
[EventType "swiss"]
[EventCountry "ITA"]
[SourceTitle "playchess.com"]
[Source "ChessBase"]
[SourceQuality "1"]
[TimeControl "40/5400+30:1800+30"]

1. d4 {[%emt 0:00:30]} Nf6 {[%emt 0:38:00]} 2. Nf3 {[%emt 0:04:30]} e6 {[%emt 0:00:30]} 3. g3 {[%emt 0:00:30]} c5 {[%emt 0:00:30]} 4. Bg2 {[%emt 0:01:30]} Be7 {[%emt 0:00:30]} 5. O-O {[%emt 0:00:30]} O-O {[%emt 0:00:30]} 6. b3 {[%emt 0:00:30]} d5 {[%emt 0:00:30]} 7. Bb2 {[%emt 0:00:30]} b6 {[%emt 0:00:30]} 8. c4 {[%emt 0:01:30]} Bb7 {[%emt 0:00:30]} 9. cxd5 {[%emt 0:00:30]} exd5 {[%emt 0:00:30]} 10. Nc3 {[%emt 0:00:30]} Nbd7 {[%emt 0:00:30]} 11. Rc1 {[%emt 0:00:30]} Re8 {[%emt 0:00:30] LiveBook: 21 Games} 12. e3 {[%emt 0:47:30]} Nf8 {[%emt 0:00:30]} 13. dxc5 {[%emt 0:37:30]} (13. Na4 {[%emt 0:00:30]}) 13... bxc5 $16 {[%emt 0:00:30]} 14. Na4 {[%emt 0:00:30]} Ne6 {[%emt 0:00:30]} 15. Bxf6 {[%emt 0:00:30]} Bxf6 {[%emt 0:00:30]} 16. Nxc5 {[%emt 0:00:30]} Nxc5 {[%emt 0:00:30]} 17. Rxc5 {[%emt 0:00:30]} Be7 {[%emt 0:00:30]} 18. Rc2 {[%emt 0:00:30]} Ba6 {[%emt 0:00:30]} 19. Rd2 {[%emt 0:00:30]} Bxf1 {[%emt 0:00:30]} 20. Bxf1 {[%emt 0:00:30]} Qa5 {[%emt 0:00:30]} 21. Rxd5 {[%emt 0:00:30]} Qxa2 {[%emt 0:00:30]} 22. Bc4 {[%emt 0:00:30]} Bf6 {[%emt 0:00:30]} 23. Rd7 {[%emt 0:00:30]} Kh8 {[%emt 0:00:30]} 24. Qd5 {[%emt 0:00:30]} Rf8 {[%emt 0:00:30]} 25. Rxf7 {[%emt 0:00:30]} Rad8 {[%emt 0:00:30]} 26. Rxf8+ {[%emt 0:00:30]} Rxf8 {[%emt 0:00:30]} 27. Kg2 {[%emt 0:00:30]} Be7 {[%emt 0:00:30]} 1/2-1/2

[Event "Forni di Sopra Dolomiti 2018"]
[Site "Forni di Sopra"]
[Date "2018.06.12"]
[Round "5.6"]
[White "Djuric, Stefan"]
[Black "Qendro, Llambi"]
[Result "1/2-1/2"]
[ECO "B08"]
[WhiteElo "2350"]
[BlackElo "2334"]
[Annotator "NA"]
[PlyCount "26"]
[EventDate "2018.??.??"]
[EventType "swiss"]
[EventCountry "ITA"]
[SourceTitle "playchess.com"]
[Source "ChessBase"]
[SourceQuality "1"]
[TimeControl "40/5400+30:1800+30"]

1. e4 {[%emt 0:00:30]} g6 {[%emt 0:01:00]} 2. d4 {[%emt 0:00:00]} Bg7 {[%emt 0:00:00]} 3. Nf3 {[%emt 0:01:00]} d6 {[%emt 0:00:00]} 4. Nc3 {[%emt 0:00:30]} c6 {[%emt 0:00:30]} 5. Bc4 {[%emt 0:06:30]} Nf6 {[%emt 0:03:30]} 6. e5 {[%emt 0:07:30]} dxe5 {[%emt 0:02:30]} 7. Nxe5 {[%emt 0:00:00]} O-O {[%emt 0:01:30]} 8. O-O {[%emt 0:01:00]} Nbd7 {[%emt 0:03:30]} 9. Bf4 {[%emt 0:01:30]} Nb6 {[%emt 0:06:30]} 10. Bb3 {[%emt 0:04:30]} Nbd5 {[%emt 0:04:30]} 11. Bg3 {[%emt 0:07:30]} Nxc3 {[%emt 0:16:30]} 12. bxc3 {[%emt 0:00:30]} Bf5 {[%emt 0:00:30]} 13. f4 {[%emt 0:29:30]} Nd5 {[%emt 0:09:30]} 1/2-1/2

[Event "Forni di Sopra Dolomiti 2018"]
[Site "Forni di Sopra"]
[Date "2018.06.12"]
[Round "5.8"]
[White "Terao, Juliana Sayumi"]
[Black "Loiacono, Antonio"]
[Result "1-0"]
[ECO "C60"]
[WhiteElo "2292"]
[BlackElo "2197"]
[Annotator "NA"]
[PlyCount "77"]
[EventDate "2018.??.??"]
[EventType "swiss"]
[EventCountry "ITA"]
[SourceTitle "playchess.com"]
[Source "ChessBase"]
[SourceQuality "1"]
[TimeControl "40/5400+30:1800+30"]

1. e4 {[%emt 0:04:30]} e5 {[%emt 0:01:00]} 2. Nf3 {[%emt 0:00:00]} Nc6 {[%emt 0:00:00]} 3. Bb5 {[%emt 0:00:00]} g6 {[%emt 0:00:00]} 4. c3 {[%emt 0:00:30]} Bg7 {[%emt 0:00:30]} 5. d4 {[%emt 0:00:30]} exd4 {[%emt 0:00:00] C60: Ruy Lopez: Unusual Black 3rd moves and 3...g6} 6. cxd4 {[%emt 0:00:30]} a6 {[%emt 0:00:00]} 7. Ba4 {[%emt 0:00:00]} (7. Bc4 b5 8. Bb3 Nge7 9. Nc3 Na5 10. Bc2 d6 11. h3 O-O 12. O-O Bb7 13. Re1 {½-½ (41) Hamdouchi,H (2580)-Malakhov,V (2691) Brest 2018}) 7... b5 {[%emt 0:00:30]} 8. Bc2 {[%emt 0:00:00]} d6 {[%emt 0:00:00]} 9. h3 {[%emt 0:00:30]} Nge7 {[%emt 0:00:00]} 10. O-O {[%emt 0:00:30]} O-O {[%emt 0:00:00]} 11. Nc3 {[%emt 0:01:30]} Bb7 {[%emt 0:01:00]} 12. Be3 {[%emt 0:00:30]} Na5 {[%emt 0:00:30]} 13. Qc1 {[%emt 0:01:30]} Nc4 $146 {[%emt 0:06:30]} ({Predecessor:} 13... f5 14. Bh6 b4 15. Bxg7 Kxg7 16. Ng5 {1-0 (51) Nevostrujev,V (2406)-Kvan,A (2180) Pavlodar 2016}) 14. Bh6 {[%emt 0:00:30]} c5 {[%emt 0:00:30]} 15. Bxg7 {[%emt 0:00:30]} Kxg7 {[%emt 0:00:30]} 16. Rd1 {[%emt 0:11:30]} Qc7 {[%emt 0:03:30]} 17. b3 {[%emt 0:02:30]} Nb6 {[%emt 0:06:30]} 18. Qd2 {[%emt 0:09:30]} c4 {[%emt 0:07:30]} 19. d5 {[%emt 0:01:30]} Rac8 {[%emt 0:04:30]} 20. Ne2 {[%emt 0:00:30]} Rfe8 {[%emt 0:02:30]} 21. Qd4+ {[%emt 0:03:30]} Kg8 {[%emt 0:01:30]} 22. Nf4 {[%emt 0:01:30]} Nd7 {[%emt 0:02:30]} 23. Rac1 {[%emt 0:23:30]} cxb3 {[%emt 0:01:30]} 24. Bxb3 {[%emt 0:00:30]} Qxc1 {[%emt 0:00:00]} 25. Rxc1 {[%emt 0:00:00]} Rxc1+ {[%emt 0:00:00]} 26. Kh2 {[%emt 0:00:00]} Rc7 {[%emt 0:03:30]} 27. Ng5 {[%emt 0:01:30]} Nc5 {[%emt 0:13:30]} 28. Qf6 {[%emt 0:04:30]} Nc8 {[%emt 0:00:30] [#]} 29. e5 $18 {[%emt 0:07:30]} Nxb3 {[%emt 0:07:30]} 30. exd6 {[%emt 0:00:30]} ({Weaker is} 30. axb3 dxe5 31. d6 Nxd6 $16) 30... Nxd6 {[%emt 0:05:30]} 31. Qxd6 {[%emt 0:00:30]} Rce7 {[%emt 0:00:30]} 32. axb3 {[%emt 0:00:30]} Kg7 {[%emt 0:01:30]} 33. Qb6 {[%emt 0:02:30]} h6 {[%emt 0:01:30]} 34. Nxf7 {[%emt 0:04:58]} Rxf7 {[%emt 0:01:30]} 35. Qxg6+ {[%emt 0:00:05]} Kf8 {[%emt 0:00:30]} 36. Qxh6+ {[%emt 0:01:29]} Kg8 {[%emt 0:00:30]} 37. Qg6+ {[%emt 0:00:06]} Kf8 {[%emt 0:00:30]} 38. Ne6+ {[%emt 0:00:57]} Ke7 {[%emt 0:00:00]} 39. d6+ {[%emt 0:00:16]} 1-0

[Event "Forni di Sopra Dolomiti 2018"]
[Site "Forni di Sopra"]
[Date "2018.06.12"]
[Round "5.11"]
[White "Loiacono, Leonardo"]
[Black "Dobboletta, Alex"]
[Result "1/2-1/2"]
[ECO "A85"]
[WhiteElo "2313"]
[BlackElo "2105"]
[Annotator "NA"]
[PlyCount "41"]
[EventDate "2018.??.??"]
[EventType "swiss"]
[EventCountry "ITA"]
[SourceTitle "playchess.com"]
[Source "ChessBase"]
[SourceQuality "1"]
[TimeControl "40/5400+30:1800+30"]

1. d4 {[%emt 0:00:30]} e6 {[%emt 0:05:00]} 2. c4 {[%emt 0:00:00]} f5 {[%emt 0:00:30]} 3. Nc3 {[%emt 0:00:00]} Nf6 {[%emt 0:00:00]} 4. e3 {[%emt 0:00:00]} b6 {[%emt 0:02:00]} 5. Bd3 {[%emt 0:00:00]} Bb7 {[%emt 0:00:30]} 6. f3 {[%emt 0:00:30]} c5 {[%emt 0:01:30]} 7. Nge2 {[%emt 0:00:30] A85: Dutch Defence: 2 c4 Nf6 3 Nc3} Nc6 {[%emt 0:00:30]} 8. O-O {[%emt 0:05:30]} Bd6 {[%emt 0:01:30]} 9. Kh1 {[%emt 0:11:30]} (9. d5 Ne5 10. e4 fxe4 11. Nxe4 Nxe4 12. Bxe4 Qc7 13. Nc3 Nxc4 14. f4 O-O-O {1-0 (48) Laznicka,V (2679)-Vallejo Pons,F (2698) Dubai 2014}) 9... O-O {[%emt 0:02:30]} 10. dxc5 {[%emt 0:00:30]} Bxc5 {[%emt 0:03:30]} 11. e4 {[%emt 0:01:30]} fxe4 $146 {[%emt 0:06:30]} ({Predecessor:} 11... Nh5 12. exf5 exf5 13. Nf4 Qg5 14. Ncd5 Rae8 {1-0 (42) Tanis,C (2227)-Blake,M (2059) ICCF email 2014}) 12. Nxe4 {[%emt 0:00:30]} Be7 {[%emt 0:00:30]} 13. Nxf6+ {[%emt 0:04:30]} Bxf6 {[%emt 0:00:30]} 14. Qc2 {[%emt 0:00:30]} g6 {[%emt 0:03:30]} 15. Bh6 {[%emt 0:04:30]} Rf7 {[%emt 0:06:30]} 16. Rad1 {[%emt 0:10:30]} Nb4 {[%emt 0:05:30]} 17. Qb1 {[%emt 0:00:30]} Nxd3 {[%emt 0:00:30]} 18. Rxd3 {[%emt 0:00:30]} Be5 {[%emt 0:00:30]} 19. Qc1 {[%emt 0:10:30]} Rc8 {[%emt 0:12:30]} 20. Qe3 {[%emt 0:20:30]} Bb8 {[%emt 0:12:30]} ({Black should play} 20... Bxb2 $17 21. Rfd1 Qc7) 21. b3 $11 {[%emt 0:08:56]} 1/2-1/2

[Event "Forni di Sopra Dolomiti 2018"]
[Site "Forni di Sopra"]
[Date "2018.06.12"]
[Round "5.12"]
[White "Calzetta Ruiz, Monica"]
[Black "Faglioni, Isacco"]
[Result "1-0"]
[ECO "B19"]
[WhiteElo "2289"]
[BlackElo "1925"]
[Annotator "ChessBase"]
[PlyCount "56"]
[EventDate "2018.??.??"]
[EventType "swiss"]
[EventCountry "ITA"]
[SourceTitle "playchess.com"]
[Source "ChessBase"]
[SourceQuality "1"]
[TimeControl "40/5400+30:1800+30"]

1. e4 {[%emt 0:00:30]} c6 {[%emt 0:01:00]} 2. d4 {[%emt 0:00:00]} d5 {[%emt 0:00:00]} 3. Nd2 {[%emt 0:01:00]} dxe4 {[%emt 0:00:00]} 4. Nxe4 {[%emt 0:00:00]} Bf5 {[%emt 0:00:30]} 5. Ng3 {[%emt 0:00:00]} Bg6 {[%emt 0:00:00]} 6. h4 {[%emt 0:00:30]} h6 {[%emt 0:00:00]} 7. Nf3 {[%emt 0:00:30]} e6 {[%emt 0:01:30]} 8. Ne5 {[%emt 0:04:30]} Bh7 {[%emt 0:04:30]} 9. Bd3 {[%emt 0:11:30]} Bxd3 {[%emt 0:00:00]} 10. Qxd3 {[%emt 0:00:30]} Nf6 {[%emt 0:01:00]} 11. Bd2 {[%emt 0:01:30]} Nbd7 {[%emt 0:00:30]} 12. f4 {[%emt 0:00:30]} Be7 {[%emt 0:02:30]} 13. O-O-O {[%emt 0:00:30]} Qc7 {[%emt 0:09:30]} 14. f5 {[%emt 0:22:30]} Nxe5 {[%emt 0:22:30]} 15. dxe5 {[%emt 0:03:30]} Qxe5 {[%emt 0:00:30]} 16. fxe6 {[%emt 0:00:00]} Rd8 {[%emt 0:02:30]} 17. exf7+ {[%emt 0:07:00]} Kxf7 {[%emt 0:00:30]} 18. Qb3+ {[%emt 0:00:00]} Qd5 {[%emt 0:00:30]} 19. Nf5 {[%emt 0:15:00]} Qxb3 {[%emt 0:01:30]} 20. axb3 {[%emt 0:00:00]} Bc5 {[%emt 0:02:30]} 21. b4 {[%emt 0:00:00]} Bb6 {[%emt 0:06:30]} 22. Rhf1 {[%emt 0:00:30]} Rhe8 {[%emt 0:03:30]} 23. g4 {[%emt 0:01:30]} Kg8 {[%emt 0:00:30]} 24. Nxh6+ {[%emt 0:03:30]} gxh6 {[%emt 0:01:30]} 25. Rxf6 {[%emt 0:00:00]} Re4 {[%emt 0:01:30]} 26. Rg6+ {[%emt 0:02:00]} Kf7 {[%emt 0:00:30]} 27. h5 {[%emt 0:00:00]} Rxd2 {[%emt 0:03:30]} 28. Kxd2 {[%emt 0:01:00]} Ke8 {[%emt 0:00:30]} 1-0

[Event "Forni di Sopra Dolomiti 2018"]
[Site "Forni di Sopra"]
[Date "2018.06.13"]
[Round "6.7"]
[White "Qendro, Llambi"]
[Black "Sgircea, Silvia-Raluca"]
[Result "1/2-1/2"]
[ECO "D27"]
[WhiteElo "2334"]
[BlackElo "2204"]
[Annotator "NA"]
[PlyCount "37"]
[EventDate "2018.??.??"]
[EventType "swiss"]
[EventCountry "ITA"]
[SourceTitle "playchess.com"]
[Source "ChessBase"]
[SourceQuality "1"]
[TimeControl "40/5400+30:1800+30"]

1. d4 {[%emt 0:00:30]} d5 {[%emt 0:01:00]} 2. c4 {[%emt 0:00:00]} dxc4 {[%emt 0:00:00]} 3. Nf3 {[%emt 0:00:00]} Nf6 {[%emt 0:00:00]} 4. e3 {[%emt 0:00:30]} e6 {[%emt 0:00:00]} 5. Bxc4 {[%emt 0:00:30]} c5 {[%emt 0:00:00]} 6. O-O {[%emt 0:00:30]} a6 {[%emt 0:00:30]} 7. a4 {[%emt 0:00:30]} Nc6 {[%emt 0:00:00]} 8. Qe2 {[%emt 0:00:30]} Qc7 {[%emt 0:00:00]} 9. Rd1 {[%emt 0:01:30]} Bd6 {[%emt 0:00:30]} 10. dxc5 {[%emt 0:00:30]} Bxc5 {[%emt 0:00:30]} 11. b3 {[%emt 0:02:30]} O-O {[%emt 0:00:00]} 12. Bb2 {[%emt 0:00:30]} b6 {[%emt 0:00:00]} 13. Nc3 {[%emt 0:15:30]} Bb7 {[%emt 0:04:30]} 14. Rac1 {[%emt 0:06:30]} Na5 {[%emt 0:18:30]} 15. Na2 {[%emt 0:07:30]} Qe7 {[%emt 0:05:30]} 16. Ne5 {[%emt 0:06:30]} Rfc8 {[%emt 0:18:30]} 17. Bc3 {[%emt 0:06:30]} Nxc4 {[%emt 0:00:30]} 18. Nxc4 {[%emt 0:00:30]} a5 {[%emt 0:00:30]} 19. Bd4 1/2-1/2

[Event "Forni di Sopra Dolomiti 2018"]
[Site "Forni di Sopra"]
[Date "2018.06.13"]
[Round "6.10"]
[White "Dobboletta, Alex"]
[Black "Ceschia, Ivano"]
[Result "1/2-1/2"]
[ECO "A16"]
[WhiteElo "2105"]
[BlackElo "2325"]
[Annotator "NA"]
[PlyCount "29"]
[EventDate "2018.??.??"]
[EventType "swiss"]
[EventCountry "ITA"]
[SourceTitle "playchess.com"]
[Source "ChessBase"]
[SourceQuality "1"]
[TimeControl "40/5400+30:1800+30"]

1. c4 {[%emt 0:04:30]} Nf6 {[%emt 0:02:00]} 2. Nc3 {[%emt 0:00:30]} d5 {[%emt 0:00:00]} 3. cxd5 {[%emt 0:01:30]} Nxd5 {[%emt 0:01:00]} 4. e4 {[%emt 0:00:30]} Nxc3 {[%emt 0:01:30]} 5. dxc3 {[%emt 0:00:30]} Qxd1+ {[%emt 0:00:30]} 6. Kxd1 {[%emt 0:00:00]} e5 {[%emt 0:00:30]} 7. Be3 {[%emt 0:02:00]} Be6 {[%emt 0:07:30]} 8. Nf3 {[%emt 0:07:30]} f6 {[%emt 0:02:30]} 9. Nd2 {[%emt 0:02:30]} Nd7 {[%emt 0:05:30]} 10. Bc4 {[%emt 0:00:30]} Bxc4 {[%emt 0:04:30]} 11. Nxc4 {[%emt 0:00:00]} a5 {[%emt 0:00:00]} 12. Ke2 {[%emt 0:06:00]} b5 {[%emt 0:02:00]} 13. Nd2 {[%emt 0:00:30]} Bc5 {[%emt 0:01:30]} 14. a4 {[%emt 0:02:30]} c6 {[%emt 0:04:30]} 15. b4 {[%emt 0:16:30]} 1/2-1/2

[Event "Forni di Sopra Dolomiti 2018"]
[Site "Forni di Sopra"]
[Date "2018.06.13"]
[Round "6.12"]
[White "De Santis, Alessio"]
[Black "Battistella, Stefano"]
[Result "1/2-1/2"]
[ECO "A01"]
[WhiteElo "2260"]
[BlackElo "2054"]
[Annotator "NA"]
[PlyCount "27"]
[EventDate "2018.??.??"]
[EventType "swiss"]
[EventCountry "ITA"]
[SourceTitle "playchess.com"]
[Source "ChessBase"]
[SourceQuality "1"]
[TimeControl "40/5400+30:1800+30"]

1. b3 {[%emt 0:00:30]} e5 {[%emt 0:01:00]} 2. Bb2 {[%emt 0:00:30]} Nc6 {[%emt 0:00:00]} 3. e3 {[%emt 0:00:30]} Nf6 {[%emt 0:02:00]} 4. Nf3 {[%emt 0:02:30]} e4 {[%emt 0:02:30]} 5. Nd4 {[%emt 0:00:30]} Nxd4 {[%emt 0:00:30]} 6. Bxd4 {[%emt 0:00:00]} Be7 {[%emt 0:01:30]} 7. c4 {[%emt 0:01:00]} O-O {[%emt 0:01:30]} 8. Be2 {[%emt 0:00:30]} d6 {[%emt 0:02:30]} 9. Qc2 {[%emt 0:01:30]} b6 {[%emt 0:03:30]} 10. f4 {[%emt 0:09:30]} Bb7 {[%emt 0:02:30]} 11. Nc3 {[%emt 0:13:30]} c5 {[%emt 0:08:30]} 12. Bxf6 {[%emt 0:02:30]} Bxf6 {[%emt 0:00:00]} 13. Rd1 {[%emt 0:00:30]} Re8 {[%emt 0:02:00]} 14. O-O {[%emt 0:01:30]} 1/2-1/2

[Event "Forni di Sopra Dolomiti 2018"]
[Site "Forni di Sopra"]
[Date "2018.06.14"]
[Round "7.10"]
[White "Ceschia, Ivano"]
[Black "Loiacono, Antonio"]
[Result "1/2-1/2"]
[ECO "C45"]
[WhiteElo "2325"]
[BlackElo "2197"]
[Annotator "NA"]
[PlyCount "73"]
[EventDate "2018.??.??"]
[EventType "swiss"]
[EventCountry "ITA"]
[SourceTitle "playchess.com"]
[Source "ChessBase"]
[SourceQuality "1"]
[TimeControl "40/5400+30:1800+30"]

1. e4 {[%emt 0:05:30]} e5 {[%emt 0:01:00]} 2. Nf3 {[%emt 0:00:00]} Nc6 {[%emt 0:00:00]} 3. d4 {[%emt 0:00:00]} exd4 {[%emt 0:00:00]} 4. Nxd4 {[%emt 0:00:30]} Nf6 {[%emt 0:00:00]} 5. Nxc6 {[%emt 0:00:00]} bxc6 {[%emt 0:00:00]} 6. Bd3 {[%emt 0:00:00]} d5 {[%emt 0:00:00]} 7. Qe2 {[%emt 0:01:30]} dxe4 {[%emt 0:00:00]} 8. Nc3 {[%emt 0:00:30]} Bb4 {[%emt 0:01:30]} 9. Bxe4 {[%emt 0:00:30]} Nxe4 {[%emt 0:00:30]} 10. Qxe4+ {[%emt 0:00:30]} Qe7 {[%emt 0:00:00]} 11. Qxe7+ {[%emt 0:02:30]} Kxe7 {[%emt 0:00:00]} 12. Bd2 {[%emt 0:03:30]} Bf5 {[%emt 0:04:30]} 13. O-O-O {[%emt 0:07:30]} Rhd8 {[%emt 0:07:30]} 14. Nd5+ {[%emt 0:02:30]} Rxd5 {[%emt 0:07:30]} 15. Bxb4+ {[%emt 0:00:00]} Ke8 {[%emt 0:06:30]} 16. Rhe1+ {[%emt 0:09:00]} Be6 {[%emt 0:00:30]} 17. Rxd5 {[%emt 0:01:30]} cxd5 {[%emt 0:00:00]} 18. g4 {[%emt 0:10:30]} g6 {[%emt 0:05:00]} 19. f4 {[%emt 0:02:30]} Kd7 {[%emt 0:03:30]} 20. f5 {[%emt 0:09:30]} gxf5 {[%emt 0:00:30]} 21. gxf5 {[%emt 0:00:00]} Bxf5 {[%emt 0:00:30]} 22. Re7+ {[%emt 0:00:00]} Kc6 {[%emt 0:00:30]} 23. Rxf7 {[%emt 0:00:30]} Bg6 {[%emt 0:00:30]} 24. Rg7 {[%emt 0:06:30]} Re8 {[%emt 0:02:30]} 25. Be7 {[%emt 0:13:30]} a5 {[%emt 0:03:30]} 26. a4 {[%emt 0:00:30]} d4 {[%emt 0:03:30]} 27. Kd2 {[%emt 0:00:30]} Rb8 {[%emt 0:01:30]} 28. Ba3 {[%emt 0:04:30]} d3 {[%emt 0:05:30]} 29. c3 {[%emt 0:14:19]} Rd8 {[%emt 0:01:30]} 30. b4 {[%emt 0:00:31]} axb4 {[%emt 0:00:30]} 31. cxb4 {[%emt 0:01:51]} Ra8 {[%emt 0:00:30]} 32. a5 {[%emt 0:03:03]} Re8 {[%emt 0:00:30]} 33. b5+ {[%emt 0:01:08]} Kxb5 {[%emt 0:00:30]} 34. Re7 {[%emt 0:00:10]} Rc8 {[%emt 0:03:30]} 35. h4 {[%emt 0:00:06]} c5 {[%emt 0:01:30]} 36. Re5 {[%emt 0:01:15]} Kxa5 {[%emt 0:14:30]} 37. Rxc5+ {[%emt 0:00:18]} 1/2-1/2